{"text_format":"2","workbook":"xlsx","n_sheets":1,"sheets":["2014_изменения_публикация"],"not_rendered":{"charts":0,"images":0,"macros":0,"external_links":0,"defined_names":3,"comments":0,"pivot_tables":0},"unopened":[],"bounds":{"document_bytes":16777216,"sheet_cells":100000,"run_cost":"one","rows_first":2000,"rows_last":500,"rows_between":2000,"halvings":0,"cell_chars":16384,"cell_head_chars":4096},"cells_cut":0,"cells_raw":0,"read":"whole","date_system":"1900"}

{"sheet":"2014_изменения_публикация","index":0,"n_rows":243,"n_cols":16,"rows_kept":243,"cut":false,"hidden":false,"merged":[[241,0,241,6],[241,8,241,10],[241,11,241,14],[17,3,18,3],[17,4,18,4],[17,5,17,6],[17,7,18,7],[17,8,17,9],[17,10,18,10],[13,0,13,4],[13,5,13,14],[14,0,14,4],[14,5,14,14],[16,0,18,0],[16,1,18,1],[16,2,18,2],[16,3,16,12],[16,13,18,13],[16,14,17,14],[17,11,17,12],[10,0,10,4],[10,5,10,14],[11,0,11,4],[11,5,11,14],[12,0,12,4],[12,5,12,14],[5,0,5,14],[6,0,6,14],[8,0,8,4],[8,5,8,14],[9,0,9,4],[9,5,9,14]]}
[]
[{"$nulls":11},"Приложение 1"]
[{"$nulls":11},"к приказу от 16.06.2014г. № 91"]
[]
[]
["План закупки товаров (работ, услуг)"]
["на 2014 год"]
[]
["Наименование заказчика",{"$nulls":4},"ОАО \"Газпром межрегионгаз Нижний Новгород\""]
["Адрес местонахождения заказчика",{"$nulls":4},"603005, г.Нижний Новгород, ул.Верхне - Волжская набережная, д.5"]
["Телефон заказчика",{"$nulls":4},"(831) 416-07-30"]
["Электронная почта заказчика",{"$nulls":4},"Secretar@mrgnn.ru"]
["ИНН",{"$nulls":4},5260070633]
["КПП",{"$nulls":4},525350001]
["ОКАТО",{"$nulls":4},22401373000]
[]
["Порядковый номер","Код по ОКВЭД","Код по ОКДП","Условия договора",{"$nulls":9},"Способ закупки","Закупка в электронной форме"]
[null,null,null,"Предмет договора","Минимально необходимые требования, предъявляемые к закупаемым товарам (работам, услугам)","Единица измерения",null,"Сведения о количестве (объеме)","Регион поставки товаров (выполнение работ, оказания услуг)",null,"Сведения о начальной (максимальной) цене договора (цене лота)","График осуществления процедур закупки"]
[{"$nulls":5},"Код по ОКЕИ","наименование",null,"Код по ОКАТО","наименование",null,"Планируемая дата или период размещения извещения о закупке (месяц, год)","Срок исполнения договора (месяц, год)",null,"да/нет"]
[1,2,3,4,5,6,7,8,9,10,11,12,13,14,15]
[1,"40.30",4030000,"Коммунальные услуги: теплоэнергия",null,876,"усл.ед.",1,22000000000,"Нижегородская область",{"$f":"(12.39+2321.17)*1000*1.18","v":2753600.8},"Январь, 2014г.","Декабрь, 2014г.","Прямая закупка (закупка у единственного поставщика)"]
[2,"40.10",40100000,"Коммунальные услуги: электроэнергия",null,876,"усл.ед.",1,22000000000,"Нижегородская область",{"$f":"1892.39*1000*1.18","v":2233020.1999999997},"Январь, 2014г.","Декабрь, 2014г.","Прямая закупка (закупка у единственного поставщика)"]
[3,"40.10.2.",40100000,"Коммунальные услуги: электроэнергия",null,876,"усл.ед.",1,17000000000,"Владимирская область",{"$f":"2657.16*1000","v":2657160},"Январь, 2014г.","Декабрь, 2014г.","Прямая закупка (закупка у единственного поставщика)"]
[4,"40.10.2",40100000,"Коммунальные услуги: электроэнергия для объектов АСКУГ",null,876,"усл.ед.",1,22000000000,"Нижегородская область",{"$f":"100000*1.18","v":118000},"Январь, 2014г.","Декабрь, 2014г.","Прямая закупка (закупка у единственного поставщика)"]
[5,"41.00.2",9450020,"Коммунальные услуги: водоснабжение",null,876,"усл.ед.",1,22000000000,"Нижегородская область",{"$f":"(134.35+47.61)*1000*1.18","v":214712.79999999996},"Январь, 2014г.","Декабрь, 2014г.","Прямая закупка (закупка у единственного поставщика)"]
[6,"50.20.1",5020020,"Гарантийный ремонт автомобилей Тойота",null,876,"усл.ед.",1,22401000000,"г.Нижний Новгород",{"$f":"40000+86390*1.18+10500","v":152440.20000000001},"Январь, 2014г.","Декабрь, 2014г.","Прямая закупка (закупка у единственного поставщика)"]
[7,"50.20.1",5020020,"Гарантийный ремонт автомобиля Мерседес",null,876,"усл.ед.",1,22401000000,"г.Нижний Новгород",450000,"Январь, 2014г.","Декабрь, 2014г.","Прямая закупка (закупка у единственного поставщика)"]
[8,"50.20.1",5020020,"Гарантийный ремонт автомобиля Ауди",null,876,"усл.ед.",1,22401000000,"г.Нижний Новгород",100000,"Январь, 2014г.","Декабрь, 2014г.","Прямая закупка (закупка у единственного поставщика)"]
[9,"63.21.24",6322000,"Расходы на стоянку автомобилей",null,876,"усл.ед.",1,22401000000,"г.Нижний Новгород",217480,"Январь, 2014г.","Декабрь, 2014г.","Прямая закупка (закупка у единственного поставщика)"]
[10,"25.12",5030110,"Расходы на шиномонтаж",null,876,"усл.ед.",1,22401000000,"г.Нижний Новгород",{"$f":"156410*1.18","v":184563.8},"Январь, 2014г.","Декабрь, 2014г.","Прямая закупка (закупка у единственного поставщика)"]
[11,"74.30.7",5020010,"Расходы на технический осмотр",null,876,"усл.ед.",1,22401000000,"г.Нижний Новгород",{"$f":"4010*1.18","v":4731.8},"Январь, 2014г.","Декабрь, 2014г.","Прямая закупка (закупка у единственного поставщика)"]
[12,null,null,"Расходы на получение пропусков",null,876,"усл.ед.",1,22401000000,"г.Нижний Новгород",{"$f":"85120*1.18","v":100441.59999999999},"Январь, 2014г.","Март, 2014г.","Прямая закупка (закупка у единственного поставщика)"]
[13,"50.20.1",5020850,"Установка дополнительного оборудования на транспортные средства",null,876,"усл.ед.",1,22401000000,"г.Нижний Новгород",{"$f":"211000*1.18","v":248980},"Январь, 2014г.","Декабрь, 2014г.","Прямая закупка (закупка у единственного поставщика)"]
[14," 50.20.3",5020100,"Расходы на мойку автомобилей",null,876,"усл.ед.",1,22401000000,"г.Нижний Новгород",{"$f":"258830*1.18","v":305419.39999999997},"Январь, 2014г.","Декабрь, 2014г.","Прямая закупка (закупка у единственного поставщика)"]
[15,null,null,"Расходы на содержание автомобилей",null,876,"усл.ед.",1,22401000000,"г.Нижний Новгород",70387,"Январь, 2014г.","Декабрь, 2014г.","Прямая закупка (закупка у единственного поставщика)"]
[16,null,null,"Расходы на содержание автомобилей",null,876,"усл.ед.",1,22401000000,"г.Нижний Новгород",174899.6,"Январь, 2014г.","Декабрь, 2014г.","Открытый запрос предложений","нет"]
[17,null,null,"Материалы на содержание зданий (моющие, чистящие средства, туал.бумага…)",null,876,"усл.ед.",1,22401000000,"г.Нижний Новгород",487397.82,"Январь, 2014г.","Декабрь, 2014г.","Прямая закупка (закупка у единственного поставщика)"]
[18,null,null,"Хозяйственный инвентарь (метлы, лопаты, лейки…)",null,876,"усл.ед.",1,22401000000,"г.Нижний Новгород",{"$f":"120773+21791","v":142564},"Январь, 2014г.","Декабрь, 2014г.","Прямая закупка (закупка у единственного поставщика)"]
[19,null,null,"Электротехническая продукция (лампы, светильники…)",null,796,"шт",976,22401000000,"г.Нижний Новгород",215456.2,"Январь, 2014г.","Декабрь, 2014г.","Прямая закупка (закупка у единственного поставщика)"]
[20,null,null,"Прочие материалы на содержание зданий (лакокрасочные изделия, крепеж, соль тротуарная…)",null,876,"усл.ед.",1,22401000000,"г.Нижний Новгород",37630.199999999997,"Январь, 2014г.","Декабрь, 2014г.","Прямая закупка (закупка у единственного поставщика)"]
[21,null,9010020,"Вывоз бытовых отходов",null,876,"усл.ед.",1,22401000000,"г.Нижний Новгород",{"$f":"(49640+5000)*1.18+16000","v":80475.199999999997},"Январь, 2014г.","Декабрь, 2014г.","Прямая закупка (закупка у единственного поставщика)"]
[22,null,null,"Вывоз снега. Чистка снега с крыш. ЦО",null,876,"усл.ед.",1,22401000000,"г.Нижний Новгород",{"$f":"(155290+41760)*1.18","v":232519},"Январь, 2014г.","Декабрь, 2014г.","Прямая закупка (закупка у единственного поставщика)"]
[23,null,null,"Чистка снега с крыш адм.здания г.Сергач",null,876,"усл.ед.",1,22248501000,"г.Сергач",{"$f":"30000*1.18","v":35400},"Январь, 2014г.","Декабрь, 2014г.","Прямая закупка (закупка у единственного поставщика)"]
[24,null,null,"Аварийное обслуживание и затраты на ликвидацию аварии",null,876,"усл.ед.",1,22401000000,"г.Нижний Новгород",{"$f":"(14800+55000)*1.18","v":82364},"Январь, 2014г.","Декабрь, 2014г.","Прямая закупка (закупка у единственного поставщика)"]
[25,null,null,"Договор на оперативно-техническое обслуживание ТП",null,876,"усл.ед.",1,22401000000,"г.Нижний Новгород",{"$f":"76930*1.18+140870","v":231647.4},"Январь, 2014г.","Декабрь, 2014г.","Прямая закупка (закупка у единственного поставщика)"]
[26,null,null,"Обслуживание систем вентиляции и кондиционирования, ремонт, запчасти",null,876,"усл.ед.",1,22401000000,"г.Нижний Новгород",{"$f":"(88210+34140)*1.18+24500+5000","v":173873},"Январь, 2014г.","Декабрь, 2014г.","Прямая закупка (закупка у единственного поставщика)"]
[27,null,null,"Абонентское ТО и ремонт газового оборудования кот.адм.зд.г.Сергач",null,876,"усл.ед.",1,22248501000,"г.Сергач",{"$f":"9580*1.18","v":11304.4},"Январь, 2014г.","Декабрь, 2014г.","Прямая закупка (закупка у единственного поставщика)"]
[28,null,null,"Расходы по уходу за напольным покрытием ЦО. Расходы на мойку окон, химчистку занавесок и штор ЦО и Вл.обл.",null,876,"усл.ед.",1,22401000000,"г.Нижний Новгород",{"$f":"40980*1.18+132550*1.18+70000","v":274765.40000000002},"Январь, 2014г.","Декабрь, 2014г.","Прямая закупка (закупка у единственного поставщика)"]
[29,null,null,"Проведение дератизационных и дезинсекционных работ ЦО и Вл.обл.",null,876,"усл.ед.",1,22401000000,"г.Нижний Новгород",{"$f":"32510*1.18+15000","v":53361.799999999996},"Январь, 2014г.","Декабрь, 2014г.","Прямая закупка (закупка у единственного поставщика)"]
[30,null,null,"Ремонт и ТО системы охранно - пожарной безопасности и запчасти. Вл.обл.",null,876,"усл.ед.",1,17000000000,"Владимирская область",{"$f":"70220+8000","v":78220},"Январь, 2014г.","Декабрь, 2014г.","Прямая закупка (закупка у единственного поставщика)"]
[31,null,null,"Аварийно-диспетчерское обслуживание газопроводов и газового оборуд.кот.г.Сергач",null,876,"усл.ед.",1,22248501000,"г.Сергач",{"$f":"1350*1.18","v":1593},"Январь, 2014г.","Декабрь, 2014г.","Прямая закупка (закупка у единственного поставщика)"]
[32,null,null,"ТО автоматических ворот, приобретение зап.частей и комплектующих для обслуживания автомат. ворот",null,876,"усл.ед.",1,22401000000,"г.Нижний Новгород",{"$f":"(20200+20000)*1.18","v":47436},"Январь, 2014г.","Декабрь, 2014г.","Прямая закупка (закупка у единственного поставщика)"]
[33,null,null,"Промывка, опрессовка отопит. системы админ. здания, поверка и испытание системы приточно-вытяжной вентиляции и состояния дымоходов котельной ЦО",null,876,"усл.ед.",1,22401000000,"г.Нижний Новгород",{"$f":"44390*1.18","v":52380.2},"Январь, 2014г.","Декабрь, 2014г.","Прямая закупка (закупка у единственного поставщика)"]
[34,null,null,"Промывка, опрессовка отопит. системы админ. здания, поверка и испытание системы приточно-вытяжной вентиляции и состояния дымоходов котельной г.Сергач",null,876,"усл.ед.",1,22248501000,"г.Сергач",{"$f":"10230*1.18","v":12071.4},"Январь, 2014г.","Декабрь, 2014г.","Прямая закупка (закупка у единственного поставщика)"]
[35,null,null,"Поверка эл/оборудования кот.г.Сергач",null,876,"усл.ед.",1,22248501000,"г.Сергач",{"$f":"10500*1.18","v":12390},"Январь, 2014г.","Декабрь, 2014г.","Прямая закупка (закупка у единственного поставщика)"]
[36,null,null,"Поверка приборов учета газа, тепла кот.г.Сергач",null,876,"усл.ед.",1,22248501000,"г.Сергач",{"$f":"10000*1.18","v":11800},"Январь, 2014г.","Декабрь, 2014г.","Прямая закупка (закупка у единственного поставщика)"]
[37,null,null,"Договор о демеркуризации ртутьсодержащих ламп, оргтехники, макулатуры ЦО и Вл.обл.",null,876,"усл.ед.",1,22401000000,"г.Нижний Новгород",{"$f":"10000*1.18+4000","v":15800},"Январь, 2014г.","Декабрь, 2014г.","Прямая закупка (закупка у единственного поставщика)"]
[38,null,null,"Техническое обслуживание окон ЦО",null,876,"усл.ед.",1,22000000000,"Нижегородская область",{"$f":"10000*1.18","v":11800},"Январь, 2014г.","Декабрь, 2014г.","Прямая закупка (закупка у единственного поставщика)"]
[39,null,null,"ТО уборочной и бытовой техники Вл.обл.",null,876,"усл.ед.",1,17000000000,"Владимирская область",{"$f":"34280+3600","v":37880},"Январь, 2014г.","Декабрь, 2014г.","Прямая закупка (закупка у единственного поставщика)"]
[40,null,null,"Аренда МТК  (в случае аварийного отключения водоснабжения)",null,876,"усл.ед.",1,22401000000,"г.Нижний Новгород",{"$f":"10200*1.18","v":12036},"Январь, 2014г.","Декабрь, 2014г.","Прямая закупка (закупка у единственного поставщика)"]
[41,null,null,"Уборка помещения в арендуемом помещении г.Дзержинск",null,876,"усл.ед.",1,22421000000,"г.Дзержинск",{"$f":"36810*1.18","v":43435.799999999996},"Январь, 2014г.","Декабрь, 2014г.","Прямая закупка (закупка у единственного поставщика)"]
[42,null,null,"Уборка помещения в административном здании в г.Сергач",null,876,"усл.ед.",1,22248501000,"г.Сергач",{"$f":"60410*1.18","v":71283.8},"Январь, 2014г.","Декабрь, 2014г.","Прямая закупка (закупка у единственного поставщика)"]
[43,null,null,"Поверка электрооборудования администр.здания ЦО",null,876,"усл.ед.",1,22401000000,"г.Нижний Новгород",{"$f":"36120*1.18","v":42621.599999999999},"Январь, 2014г.","Декабрь, 2014г.","Прямая закупка (закупка у единственного поставщика)"]
[44,null,null,"Прочие непредвиденные расходы",null,876,"усл.ед.",1,22401000000,"г.Нижний Новгород",{"$f":"(50000+10000)*1.18","v":70800},"Январь, 2014г.","Декабрь, 2014г.","Прямая закупка (закупка у единственного поставщика)"]
[45,null,null,"Техобслуживание инженерных систем адм.здания г.Сергач",null,876,"усл.ед.",1,22248501000,"г.Сергач",{"$f":"420370*1.18","v":496036.6},"Январь, 2014г.","Декабрь, 2014г.","Прямая закупка (закупка у единственного поставщика)"]
[46,null,null,"ТО и ремонт пожарной сигнализации адм.зд.г.Сергач",null,876,"усл.ед.",1,22248501000,"г.Сергач",{"$f":"34510*1.18","v":40721.799999999996},"Январь, 2014г.","Декабрь, 2014г.","Прямая закупка (закупка у единственного поставщика)"]
[47,null,null,"ТО и ремонт КНС адм.зд. г.Сергач",null,876,"усл.ед.",1,22248501000,"г.Сергач",{"$f":"165510*1.18","v":195301.8},"Январь, 2014г.","Декабрь, 2014г.","Прямая закупка (закупка у единственного поставщика)"]
[48,"45.3",4520529,"Договор  на обслуживание электрокотлов и  системы отопления, запчасти Вл.обл.",null,876,"усл.ед.",1,17000000000,"Владимирская область",{"$f":"483310+35000","v":518310},"Январь, 2014г.","Декабрь, 2014г.","Прямая закупка (закупка у единственного поставщика)"]
[49,null,null,"Обслуживание системы водоподготовки, запчасти и ремонт Вл.обл.",null,876,"усл.ед.",1,17000000000,"Владимирская область",{"$f":"203010+20000","v":223010},"Январь, 2014г.","Декабрь, 2014г.","Прямая закупка (закупка у единственного поставщика)"]
[50,null,null,"Обслуживание диз.генератора Вл.обл.",null,876,"усл.ед.",1,17000000000,"Владимирская область",144110,"Январь, 2014г.","Декабрь, 2014г.","Прямая закупка (закупка у единственного поставщика)"]
[51,null,null,"Техническое обслуживание деревяннных конструкций Вл.обл.",null,876,"усл.ед.",1,17000000000,"Владимирская область",{"$f":"407630+6000","v":413630},"Январь, 2014г.","Декабрь, 2014г.","Прямая закупка (закупка у единственного поставщика)"]
[52,null,null,"ТО системы автоматической пожарной сигнализации в здании АТС-2 г.Семенов",null,876,"усл.ед.",1,22437000000,"г.Семенов",14885.64,"Январь, 2014г.","Декабрь, 2014г.","Прямая закупка (закупка у единственного поставщика)"]
[53,null,null,"Промывка и опрессовка системы отопления здания АТС-2 г.Семенов",null,876,"усл.ед.",1,22437000000,"г.Семенов",29972,"Январь, 2014г.","Декабрь, 2014г.","Прямая закупка (закупка у единственного поставщика)"]
[54,null,null,"Промывка и опрессовка системы отопления офисного помещения в р.п.Сосновское",null,876,"усл.ед.",1,22000000000,"Нижегородская область",5643.33,"Январь, 2014г.","Декабрь, 2014г.","Прямая закупка (закупка у единственного поставщика)"]
[55,null,null,"Прочие расходы на содержание помещений, сдаваемых в аренду",null,876,"усл.ед.",1,22000000000,"Нижегородская область",75940.87,"Январь, 2014г.","Декабрь, 2014г.","Прямая закупка (закупка у единственного поставщика)"]
[56,"51.85.2",5150410,"Мебель",null,796,"шт",87,22401000000,"г.Нижний Новгород",1049539.08,"Январь, 2014г.","Декабрь, 2014г.","Открытый запрос предложений","нет"]
[57,null,null,"Инвентарь",null,796,"шт",73,22401000000,"г.Нижний Новгород",{"$f":"52392+20060+21240","v":93692},"Январь, 2014г.","Декабрь, 2014г.","Прямая закупка (закупка у единственного поставщика)",null,"Из стр.206 включены суммы 20060 (пылесос Керхер), 21240 (морозильная камера Вл.обл.)"]
[58,null,null,"Пломбирующий материал для участков СРГ",null,876,"усл.ед.",1,22401000000,"г.Нижний Новгород",{"$f":"220000*1.18","v":259600},"Январь, 2014г.","Июнь, 2014г.","Прямая закупка (закупка у единственного поставщика)"]
[59,"51.4",5230000,"Товары для офиса",null,796,"шт",1136,22401000000,"г.Нижний Новгород",{"$f":"376865.04+17891.16+(22500+4550)*1.18+17700","v":444375.19999999995},"Январь, 2014г.","Декабрь, 2014г.","Прямая закупка (закупка у единственного поставщика)"]
[60,null,null,"Прочие материалы",null,796,"шт",508,17000000000,"Владимирская область",67704.98,"Январь, 2014г.","Декабрь, 2014г.","Прямая закупка (закупка у единственного поставщика)"]
[61,"51.64.2",3010000,"Картриджи",null,796,"шт",360,22401000000,"г.Нижний Новгород",1078500,"Январь, 2014г.","Декабрь, 2014г.","Открытый запрос предложений","да"]
[62,null,null,"Расходные материалы",null,796,"шт",59,22401000000,"г.Нижний Новгород",{"$f":"61000*1.18","v":71980},"Январь, 2014г.","Декабрь, 2014г.","Прямая закупка (закупка у единственного поставщика)"]
[63,null,null,"Расходы на газ на собственные нужды",null,876,"усл.ед.",1,22401000000,"г.Нижний Новгород",{"$f":"153356.37*1.18","v":180960.51659999997},"Январь, 2014г.","Декабрь, 2014г.","Прямая закупка (закупка у единственного поставщика)"]
[64,"70.2",7010000,"Расходы на аренду помещений",null,876,"усл.ед.",1,22000000000,"Нижегородская область",{"$f":"1495705.45*1.18","v":1764932.4309999999},"Январь, 2014г.","Декабрь, 2014г.","Прямая закупка (закупка у единственного поставщика)"]
[65,"70.12.3",7010000,"Расходы на аренду земли",null,876,"усл.ед.",1,22000000000,"Нижегородская область",{"$f":"710743.7+33537.38+690950","v":1435231.08},"Январь, 2014г.","Декабрь, 2014г.","Прямая закупка (закупка у единственного поставщика)"]
[66,"71.3",7120000,"Аренда оборудования ЛВС",null,876,"усл.ед.",1,22401000000,"г.Нижний Новгород",{"$f":"133346.52*1.18","v":157348.89359999998},"Январь, 2014г.","Декабрь, 2014г.","Прямая закупка (закупка у единственного поставщика)"]
[67,"71.3",7120000,"Аренда АТС \"Hicom\"",null,876,"усл.ед.",1,22401000000,"г.Нижний Новгород",{"$f":"1275049.83*1.18","v":1504558.7993999999},"Январь, 2014г.","Декабрь, 2014г.","Прямая закупка (закупка у единственного поставщика)"]
[68,"71.3",7120000,"Станция спутниковой связи Ku-диапазона",null,876,"усл.ед.",1,22401000000,"г.Нижний Новгород",{"$f":"179109.56*1.18","v":211349.28079999998},"Январь, 2014г.","Декабрь, 2014г.","Прямая закупка (закупка у единственного поставщика)"]
[69,"71.3",7120000,"Аренда оборудования видеоконференцсвязи",null,876,"усл.ед.",1,22401000000,"г.Нижний Новгород",{"$f":"796037.76*1.18","v":939324.5567999999},"Январь, 2014г.","Декабрь, 2014г.","Прямая закупка (закупка у единственного поставщика)"]
[70,"71.3",7120000,"Аренда СЗИ ЕИТП",null,876,"усл.ед.",1,22401000000,"г.Нижний Новгород",{"$f":"324834.3*1.18","v":383304.47399999999},"Январь, 2014г.","Декабрь, 2014г.","Прямая закупка (закупка у единственного поставщика)"]
[71,"71.3",7120000,"Аренда КТС",null,876,"усл.ед.",1,22401000000,"г.Нижний Новгород",{"$f":"2570640.84*1.18","v":3033356.1911999998},"Январь, 2014г.","Декабрь, 2014г.","Прямая закупка (закупка у единственного поставщика)"]
[72,"71.3",7120000,"Аренда системы телеметрии",null,876,"усл.ед.",1,22401000000,"г.Нижний Новгород",{"$f":"14787412.2*1.18","v":17449146.395999998},"Январь, 2014г.","Декабрь, 2014г.","Прямая закупка (закупка у единственного поставщика)"]
[73,"71.3",7120000,"Аренда ПИС",null,876,"усл.ед.",1,22401000000,"г.Нижний Новгород",{"$f":"893148.84*1.18","v":1053915.6311999999},"Январь, 2014г.","Декабрь, 2014г.","Прямая закупка (закупка у единственного поставщика)"]
[74,"71.3",7120000,"Аренда диспетчерского пункта",null,876,"усл.ед.",1,22401000000,"г.Нижний Новгород",{"$f":"760105.44*1.18","v":896924.41919999989},"Январь, 2014г.","Декабрь, 2014г.","Прямая закупка (закупка у единственного поставщика)"]
[75,"66.03.1",6611020,"Добровольное мед.страхование",null,876,"усл.ед.",1,22401000000,"г.Нижний Новгород",{"$f":"8694960+730000+135000","v":9559960},"Январь, 2014г.","Декабрь, 2014г.","Прямая закупка (закупка у единственного поставщика)"]
[76,"66.03.2",6613020,"ОСАГО",null,876,"усл.ед.",1,22401000000,"г.Нижний Новгород",{"$f":"367574.85+20233.54","v":387808.38999999996},"Январь, 2014г.","Декабрь, 2014г.","Прямая закупка (закупка у единственного поставщика)"]
[77,"66.03.2",6613020,"КАСКО",null,876,"усл.ед.",1,22401000000,"г.Нижний Новгород",{"$f":"905153.7","v":905153.7},"Январь, 2014г.","Декабрь, 2014г.","Прямая закупка (закупка у единственного поставщика)"]
[78,"66.03.2",661301,"Страхование УУГ в Арзамасском р-оне. Страхование ответственности за УУГ в Арзамасском и Краснооктябрьском р-нах (ответственность за ОПО) ",null,876,"усл.ед.",1,22401000000,"г.Нижний Новгород",{"$f":"100000+14150","v":114150},"Январь, 2014г.","Декабрь, 2014г.","Прямая закупка (закупка у единственного поставщика)"]
[79,"66.03.2",661301,"Страхование имущества Вл.обл.",null,876,"усл.ед.",1,22401000000,"г.Нижний Новгород",175808.84,"Январь, 2014г.","Декабрь, 2014г.","Прямая закупка (закупка у единственного поставщика)"]
[80,45,4500000,"Капитальный ремонт нежилого здания АТС-2",null,876,"усл.ед.",1,22437000000,"г.Семенов",2456496.2999999998,"Январь, 2014г.","Сентябрь, 2014г.","Открытый запрос предложений","нет"]
[81,29,9430000,"Расходы на непредвиденные ремонты прочих основных средств",null,876,"усл.ед.",1,22401000000,"г.Нижний Новгород",{"$f":"250000*1.18","v":295000},"Январь, 2014г.","Декабрь, 2014г.","Прямая закупка (закупка у единственного поставщика)"]
[82,"45.21",4500000,"Аварийные ремонты на объектах Владимирской области",null,876,"усл.ед.",1,17000000000,"Владимирская область",140000,"Январь, 2014г.","Декабрь, 2014г.","Прямая закупка (закупка у единственного поставщика)"]
[83,"64.20.11",6420000,"Абонентская, междугородняя плата, зоновая связь",null,876,"усл.ед.",1,22401000000,"г.Нижний Новгород",{"$f":"1472720*1.18","v":1737809.5999999999},"Январь, 2014г.","Декабрь, 2014г.","Прямая закупка (закупка у единственного поставщика)"]
[84,"64.20.11",6420000,"Сотовая связь",null,876,"усл.ед.",1,22401000000,"г.Нижний Новгород",{"$f":"680000*1.18+61700","v":864100},"Январь, 2014г.","Декабрь, 2014г.","Прямая закупка (закупка у единственного поставщика)"]
[85,"64.20.11",6420000,"Затраты на передачу данных АСКУГ.",null,876,"усл.ед.",1,22401000000,"г.Нижний Новгород",{"$f":"588600*1.18","v":694548},"Январь, 2014г.","Декабрь, 2014г.","Прямая закупка (закупка у единственного поставщика)"]
[86,"64.20.11",6420000,"Ведомственная связь",null,876,"усл.ед.",1,22401000000,"г.Нижний Новгород",{"$f":"53380*1.18","v":62988.399999999994},"Январь, 2014г.","Декабрь, 2014г.","Прямая закупка (закупка у единственного поставщика)"]
[87,"71.3",7120000,"Плата за размещение оборудования",null,876,"усл.ед.",1,22401000000,"г.Нижний Новгород",{"$f":"244050*1.18","v":287979},"Январь, 2014г.","Декабрь, 2014г.","Прямая закупка (закупка у единственного поставщика)"]
[88,"64.20.11",6420000,"Прочие услуги связи",null,876,"усл.ед.",1,22401000000,"г.Нижний Новгород",{"$f":"84000*1.18","v":99120},"Январь, 2014г.","Декабрь, 2014г.","Прямая закупка (закупка у единственного поставщика)"]
[89,"64.20.11",6420000,"Затраты на передачу данных по участкам СРГ.",null,876,"усл.ед.",1,22401000000,"г.Нижний Новгород",{"$f":"396450*1.18","v":467811},"Январь, 2014г.","Декабрь, 2014г.","Прямая закупка (закупка у единственного поставщика)"]
[90,"64.20.11",6420000,"Передача данных от системы навигации автотранспорта",null,876,"усл.ед.",1,22401000000,"г.Нижний Новгород",{"$f":"14810*1.18","v":17475.8},"Январь, 2014г.","Декабрь, 2014г.","Прямая закупка (закупка у единственного поставщика)"]
[91,"74.60",7523000,"Охрана объектов Вл.обл.",null,876,"усл.ед.",1,17000000000,"Владимирская область",2986600,"Январь, 2014г.","Декабрь, 2014г.","Прямая закупка (закупка у единственного поставщика)"]
[92,"74.60",7523000,"Охрана объектов ЦО",null,876,"усл.ед.",1,22401000000,"г.Нижний Новгород",{"$f":"969397.46*12","v":11632769.52},"Январь, 2014г.","Декабрь, 2014г.","Прямая закупка (закупка у единственного поставщика)"]
[93,"72.10",7220033,"Оказание услуг по информационно - технологическому сопровождению программного обеспечения \"ИУС ГАЗ\" ОАО \"Газпром межрегионгаз Нижний Новгород\"","Информационно - технологическое сопровождение программного обеспечения \"ИУС ГАЗ\"",876,"усл.ед.",1,22401000000,"г.Нижний Новгород",6807308.04,"Май, 2014г.","Июнь, 2017г.","Открытый запрос предложений","да"]
[94,"72.20",5235020,"Сопровождение системы АИС Регионгаз (существующие компоненты)",null,876,"усл.ед.",1,22401000000,"г.Нижний Новгород",{"$f":"3718291.5*1.18","v":4387583.97},"Январь, 2014г.","Декабрь, 2014г.","Прямая закупка (закупка у единственного поставщика)","нет"]
[95,"72.20",5235020,"Гранд -Смета",null,876,"усл.ед.",1,22401000000,"г.Нижний Новгород",{"$f":"83335.61*1.18","v":98336.019799999995},"Январь, 2014г.","Декабрь, 2014г.","Прямая закупка (закупка у единственного поставщика)"]
[96,"64.20",6420000,"ИНТЕРНЕТ ЦО",null,876,"усл.ед.",1,22401000000,"г.Нижний Новгород",{"$f":"195187.2*1.18","v":230320.89600000001},"Январь, 2014г.","Декабрь, 2014г.","Прямая закупка (закупка у единственного поставщика)"]
[97,"64.20",6420000,"ИНТЕРНЕТ в арендуемом помещении в БЦ г. Москва",null,876,"усл.ед.",1,45000000000,"г.Москва",{"$f":"77456.43*1.18","v":91398.587399999989},"Январь, 2014г.","Декабрь, 2014г.","Открытый запрос предложений","нет"]
[98,null,null,"Инф. услуги по расходу нефтепродуктов",null,876,"усл.ед.",1,22401000000,"г.Нижний Новгород",{"$f":"100540*1.18","v":118637.2},"Январь, 2014г.","Декабрь, 2014г.","Прямая закупка (закупка у единственного поставщика)"]
[99,null,null," Предоставление доступа к инф.ресурсам системы  (для закупок по 223 ФЗ)",null,876,"усл.ед.",1,22401000000,"г.Нижний Новгород",{"$f":"100000*1.18","v":118000},"Январь, 2014г.","Декабрь, 2014г.","Прямая закупка (закупка у единственного поставщика)"]
[100,null,null,"Прочие информационно — вычислительные услуги",null,876,"усл.ед.",1,22401000000,"г.Нижний Новгород",{"$f":"100000*1.18","v":118000},"Январь, 2014г.","Декабрь, 2014г.","Прямая закупка (закупка у единственного поставщика)"]
[101,"72.20",6420000,"Информационная система \"Руслана\"",null,876,"усл.ед.",1,22401000000,"г.Нижний Новгород",{"$f":"396000*1.18","v":467280},"Январь, 2014г.","Декабрь, 2014г.","Прямая закупка (закупка у единственного поставщика)"]
[102,"72.20",6420000,"Информационная система \"Консультант\"",null,876,"усл.ед.",1,22401000000,"г.Нижний Новгород",{"$f":"346089.41*1.18","v":408385.50379999995},"Январь, 2014г.","Декабрь, 2014г.","Прямая закупка (закупка у единственного поставщика)"]
[103,"72.20",6420000,"Информационно-консультационное обслуживание",null,876,"усл.ед.",1,22401000000,"г.Нижний Новгород",{"$f":"1261470*1.18","v":1488534.5999999999},"Январь, 2014г.","Декабрь, 2014г.","Прямая закупка (закупка у единственного поставщика)"]
[104,"80.42 ",8090010,"Семинары",null,876,"усл.ед.",1,22401000000,"г.Нижний Новгород",{"$f":"675970*1.18","v":797644.6},"Январь, 2014г.","Декабрь, 2014г.","Прямая закупка (закупка у единственного поставщика)"]
[105,"74.50",9220000,"Кадровое агенство",null,876,"усл.ед.",1,22401000000,"г.Нижний Новгород",{"$f":"84103.03*1.18+60000*1.18","v":170041.57539999997},"Январь, 2014г.","Декабрь, 2014г.","Прямая закупка (закупка у единственного поставщика)"]
[106," 92.40",9220000,"Метеоуслуги",null,876,"усл.ед.",1,22401000000,"г.Нижний Новгород",{"$f":"47300*1.18","v":55814},"Январь, 2014г.","Декабрь, 2014г.","Прямая закупка (закупка у единственного поставщика)"]
[107,"29.24.9",7424000,"Поверка метрологического оборудования",null,876,"усл.ед.",1,22000000000,"Нижегородская область",{"$f":"472540*1.18","v":557597.19999999995},"Январь, 2014г.","Декабрь, 2014г.","Прямая закупка (закупка у единственного поставщика)","нет"]
[108,"72.5",3190180,"Техническое обслуживание системы охранной сигнализации. Техническое обслуживание системы контроля управления доступом. Техническое обслуживание системы защиты информации.",null,876,"усл.ед.",1,22401000000,"г.Нижний Новгород",{"$f":"569080*1.18","v":671514.39999999991},"Январь, 2014г.","Декабрь, 2014г.","Прямая закупка (закупка у единственного поставщика)"]
[109,"72.5",3190180,"Обслуживание средств охраны Владимирской области",null,876,"усл.ед.",1,17000000000,"Владимирская область",605200,"Январь, 2014г.","Декабрь, 2014г.","Прямая закупка (закупка у единственного поставщика)"]
[110,"72.50",7250010,"Обслуживание вычислительной техники и оргтехники в представительстве ",null,876,"усл.ед.",1,45000000000,"г.Москва",{"$f":"58430*1.18","v":68947.399999999994},"Январь, 2014г.","Декабрь, 2014г.","Прямая закупка (закупка у единственного поставщика)"]
[111,null,3319020,"Техническое обслуживание систем безопасности здании ОАО \"Газпром МРГ НН\" (система пожаротушения ЦО и оповещения людей). ТО системы пожаротушения серверной ЦО.",null,876,"усл.ед.",1,22401000000,"г.Нижний Новгород",{"$f":"254340+28080","v":282420},"Январь, 2014г.","Декабрь, 2014г.","Прямая закупка (закупка у единственного поставщика)"]
[112,null,null,"ТО франкировальной машины",null,876,"усл.ед.",1,22401000000,"г.Нижний Новгород",{"$f":"5540*1.18","v":6537.2},"Январь, 2014г.","Декабрь, 2014г.","Прямая закупка (закупка у единственного поставщика)"]
[113,null,null,"Техническое обслуживание контрольно-кассовой техники",null,876,"усл.ед.",1,22401000000,"г.Нижний Новгород",{"$f":"5890*1.18","v":6950.2},"Январь, 2014г.","Декабрь, 2014г.","Прямая закупка (закупка у единственного поставщика)"]
[114,null,null,"Подшивка бухгалтерских документов",null,876,"усл.ед.",1,22401000000,"г.Нижний Новгород",{"$f":"230910","v":230910},"Январь, 2014г.","Декабрь, 2014г.","Прямая закупка (закупка у единственного поставщика)"]
[115,null,null,"Размещение информации в СМИ. Публикация публичного договора.",null,876,"усл.ед.",1,22401000000,"г.Нижний Новгород",{"$f":"(0+0+40170)*1.18","v":47400.6},"Январь, 2014г.","Декабрь, 2014г.","Прямая закупка (закупка у единственного поставщика)"]
[116,null,null,"Информационно-аналитическое обслуживание в области проверки контрагентов",null,876,"усл.ед.",1,22401000000,"г.Нижний Новгород",{"$f":"383040","v":383040},"Январь, 2014г.","Декабрь, 2014г.","Прямая закупка (закупка у единственного поставщика)"]
[117,null,null,"Проведение периодического контроля автоматизированного рабочего места (АРМ) РСП",null,876,"усл.ед.",1,22401000000,"г.Нижний Новгород",{"$f":"23000*1.18","v":27140},"Январь, 2014г.","Декабрь, 2014г.","Прямая закупка (закупка у единственного поставщика)"]
[118,null,null,"Проведение периодического контроля выделенного помещения (РСП)",null,876,"усл.ед.",1,22401000000,"г.Нижний Новгород",{"$f":"23000*1.18","v":27140},"Январь, 2014г.","Декабрь, 2014г.","Прямая закупка (закупка у единственного поставщика)"]
[119,null,null,"Обслуживание охранных систем в адм. здании г.Сергач",null,876,"усл.ед.",1,22248501000,"г.Сергач",{"$f":"139280*1.18","v":164350.39999999999},"Январь, 2014г.","Декабрь, 2014г.","Прямая закупка (закупка у единственного поставщика)"]
[120,null,null,"Обслуживание охранных систем в адм. здании г.Семенов ",null,876,"усл.ед.",1,22437000000,"г.Семенов",{"$f":"99640*1.18","v":117575.2},"Январь, 2014г.","Декабрь, 2014г.","Прямая закупка (закупка у единственного поставщика)"]
[121,null,3314181,"Разработка проекта ПДВ для подземной стоянки автотранспорта. Разработка проекта нормативов образования отходов и лимитов на их размещение.",null,876,"усл.ед.",1,22401000000,"г.Нижний Новгород",{"$f":"(60000+266000)*1.18","v":384680},"Январь, 2014г.","Декабрь, 2014г.","Прямая закупка (закупка у единственного поставщика)"]
[122,null,7250010,"Работы по заправке и восстановлению картриджей",null,876,"усл.ед.",1,22401000000,"г.Нижний Новгород",{"$f":"469380*1.18","v":553868.4},"Январь, 2014г.","Декабрь, 2014г.","Прямая закупка (закупка у единственного поставщика)"]
[123,null,7250010,"Работы по техническому обслуживанию и текущему ремонту оргтехники",null,876,"усл.ед.",1,22401000000,"г.Нижний Новгород",{"$f":"342820*1.18","v":404527.6},"Январь, 2014г.","Декабрь, 2014г.","Прямая закупка (закупка у единственного поставщика)"]
[124,null,null,"Усуги агента по организации Закупок",null,876,"усл.ед.",1,22401000000,"г.Нижний Новгород",{"$f":"70000*1.18","v":82600},"Январь, 2014г.","Декабрь, 2014г.","Прямая закупка (закупка у единственного поставщика)"]
[125,null,null,"Агентский договор на заключение государственных контрактов на поставку газа с главными распорядителями средств федерального бюджета на 2011-2016гг.",null,876,"усл.ед.",1,22401000000,"г.Нижний Новгород",{"$f":"25423.73*1.18","v":30000.001399999997},"Январь, 2014г.","Декабрь, 2014г.","Прямая закупка (закупка у единственного поставщика)"]
[126,null,1147401364,"Сервисное обслуживние станции спутниковой связи Кu-диапазона",null,876,"усл.ед.",1,22401000000,"г.Нижний Новгород",{"$f":"254240*1.18","v":300003.20000000001},"Январь, 2014г.","Декабрь, 2014г.","Прямая закупка (закупка у единственного поставщика)"]
[127,null,null,"ТО кофе - машин.",null,876,"усл.ед.",1,22401000000,"г.Нижний Новгород",{"$f":"5380*1.18","v":6348.4},"Январь, 2014г.","Декабрь, 2014г.","Прямая закупка (закупка у единственного поставщика)"]
[128,null,7250020,"Обслуживание ИБП и компьютерной техники.",null,876,"усл.ед.",1,22401000000,"г.Нижний Новгород",{"$f":"90000*1.18","v":106200},"Январь, 2014г.","Декабрь, 2014г.","Прямая закупка (закупка у единственного поставщика)"]
[129,null,null,"Прочие непредвиденные услуги",null,876,"усл.ед.",1,22401000000,"г.Нижний Новгород",{"$f":"(79350+10000+57780+3880)*1.18","v":178191.8},"Январь, 2014г.","Декабрь, 2014г.","Прямая закупка (закупка у единственного поставщика)"]
[130,null,7412040,"Аудиторские услуги",null,876,"усл.ед.",1,22401000000,"г.Нижний Новгород",{"$f":"800000*1.18","v":944000},"Январь, 2014г.","Декабрь, 2014г.","Открытый конкурс\n"]
[131,null,7400000,"Услуги по сбору денежных средств с населения",null,876,"усл.ед.",1,22401000000,"г.Нижний Новгород",{"$f":"327200000*1.18","v":386096000},"Январь, 2014г.","Декабрь, 2014г.","Прямая закупка (закупка у единственного поставщика)"]
[135,null,null,"Внеплановый ремонт и последующая поверка оборудования УУГ ГРП, ШРП (ПУРГ). Поверка средств измерения УУГ на ГРП, ШРП (ПУРГ).",null,876,"усл.ед.",1,22401000000,"г.Нижний Новгород",{"$f":"(337620+279920)*1.18","v":728697.2},"Декабрь, 2014г.","Декабрь, 2015г.","Открытый запрос предложений","нет"]
[136,null,4540161,"Расходы на покраску УУГ",null,876,"усл.ед.",1,22000000000,"Нижегородская область",{"$f":"120630*1.18","v":142343.4},"Январь, 2014г.","Декабрь, 2014г.","Прямая закупка (закупка у единственного поставщика)"]
[137,null,null,"Затраты по эксплуатации диспетчерского пункта АСКУГ",null,876,"усл.ед.",1,22401000000,"г.Нижний Новгород",{"$f":"443220*1.18","v":522999.6},"Январь, 2014г.","Декабрь, 2014г.","Прямая закупка (закупка у единственного поставщика)"]
[138,null,null,"Обслуживание Триколор Влад.обл.",null,876,"усл.ед.",1,17000000000,"Владимирская область",48000,"Январь, 2014г.","Декабрь, 2014г.","Прямая закупка (закупка у единственного поставщика)"]
[139,null,null,"Регистрация объектов, внесение записей ЕГР Вл.обл.",null,876,"усл.ед.",1,17000000000,"Владимирская область",120000,"Январь, 2014г.","Декабрь, 2014г.","Прямая закупка (закупка у единственного поставщика)"]
[140,null,null,"Услуги нотариуса Вл.обл.",null,876,"усл.ед.",1,17000000000,"Владимирская область",{"$f":"3800+80000","v":83800},"Январь, 2014г.","Декабрь, 2014г.","Прямая закупка (закупка у единственного поставщика)"]
[141,null,null,"Оценка автомобилей",null,876,"усл.ед.",1,22401000000,"г.Нижний Новгород",19790.400000000001,"Январь, 2014г.","Декабрь, 2014г.","Прямая закупка (закупка у единственного поставщика)"]
[142,null,null,"Госпошлина за снятие с учета а/м",null,876,"усл.ед.",1,22401000000,"г.Нижний Новгород",1800,"Январь, 2014г.","Декабрь, 2014г.","Прямая закупка (закупка у единственного поставщика)"]
[143,null,null,"Расходы на определение тех.состояния и утилизацию объектов перед продажей или списанием",null,876,"усл.ед.",1,22401000000,"г.Нижний Новгород",200000,"Январь, 2014г.","Декабрь, 2014г.","Прямая закупка (закупка у единственного поставщика)"]
[144,null,null,"Представительские расходы",null,876,"усл.ед.",1,22401000000,"г.Нижний Новгород",{"$f":"600990*1.18+300000","v":1009168.2},"Январь, 2014г.","Декабрь, 2014г.","Прямая закупка (закупка у единственного поставщика)"]
[145,null,null,"Предварительные медицинские осмотры",null,876,"усл.ед.",1,22000000000,"Нижегородская область",{"$f":"4470","v":4470},"Январь, 2014г.","Декабрь, 2014г.","Прямая закупка (закупка у единственного поставщика)"]
[146,null,null,"Периодические медицинские осмотры",null,876,"усл.ед.",1,22000000000,"Нижегородская область",{"$f":"223440","v":223440},"Январь, 2014г.","Декабрь, 2014г.","Прямая закупка (закупка у единственного поставщика)"]
[147,null,null,"Предрейсовые медосмотры водителей автотранспортных средств",null,876,"усл.ед.",1,22000000000,"Нижегородская область",{"$f":"170790*1.18","v":201532.19999999998},"Январь, 2014г.","Декабрь, 2014г.","Прямая закупка (закупка у единственного поставщика)"]
[148,null,null,"Приобретение питьевой воды",null,796,"шт",2640,22401000000,"г.Нижний Новгород",{"$f":"181640*1.18","v":214335.19999999998},"Январь, 2014г.","Декабрь, 2014г.","Прямая закупка (закупка у единственного поставщика)"]
[149,null,null,"Обучение по охране труда, пожарной и электробезопасности",null,876,"усл.ед.",1,22401000000,"г.Нижний Новгород",{"$f":"260890*1.18","v":307850.2},"Январь, 2014г.","Декабрь, 2014г.","Прямая закупка (закупка у единственного поставщика)"]
[150,null,null,"Приобретение необходимых приборов, эл. защитных инструментов и приспособлений, наглядных пособий, нормативно-технической литературы и т. п.",null,876,"усл.ед.",1,22401000000,"г.Нижний Новгород",{"$f":"11000*1.18","v":12980},"Январь, 2014г.","Декабрь, 2014г.","Прямая закупка (закупка у единственного поставщика)"]
[151,null,2924694,"Испытания средств индивидуальной защиты и инструментов",null,876,"усл.ед.",1,22401000000,"г.Нижний Новгород",{"$f":"5000*1.18","v":5900},"Январь, 2014г.","Декабрь, 2014г.","Прямая закупка (закупка у единственного поставщика)"]
[152,null,null,"Ремонт и перезарядка огнетушителей",null,876,"усл.ед.",1,22401000000,"г.Нижний Новгород",47884.59,"Январь, 2014г.","Декабрь, 2014г.","Прямая закупка (закупка у единственного поставщика)"]
[153,null,null,"Приобретение огнетушителей",null,796,"шт",39,22401000000,"г.Нижний Новгород",35605.14,"Январь, 2014г.","Декабрь, 2014г.","Прямая закупка (закупка у единственного поставщика)"]
[154,null,null,"Подготовка кадров",null,876,"усл.ед.",1,22401000000,"г.Нижний Новгород",{"$f":"584470*1.18+210000","v":899674.6},"Январь, 2014г.","Декабрь, 2014г.","Прямая закупка (закупка у единственного поставщика)"]
[155,null,null,"Канцтовары",null,796,"шт",13216,22401000000,"г.Нижний Новгород",{"$f":"484445.61","v":484445.61},"Январь, 2014г.","Декабрь, 2014г.","Прямая закупка (закупка у единственного поставщика)"]
[156,null,null,"Бумага",null,796,"шт",27768,22401000000,"г.Нижний Новгород",{"$f":"632877.21*1.18","v":746795.10779999988},"Март, 2014г.","Сентябрь, 2014г.","Открытый запрос предложений"]
[157,null,null,"Почтово-телеграфные услуги",null,876,"усл.ед.",1,22401000000,"г.Нижний Новгород",{"$f":"2014106*1.18","v":2376645.08},"Январь, 2014г.","Декабрь, 2014г.","Прямая закупка (закупка у единственного поставщика)"]
[158,null,null,"Подписка на периодические издания и приобретение литературы",null,876,"усл.ед.",1,22401000000,"г.Нижний Новгород",{"$f":"284140*1.18","v":335285.19999999995},"Январь, 2014г.","Декабрь, 2014г.","Прямая закупка (закупка у единственного поставщика)"]
[159,null,null,"Расходы на рекламу",null,876,"усл.ед.",1,22401000000,"г.Нижний Новгород",1623220,"Январь, 2014г.","Декабрь, 2014г.","Прямая закупка (закупка у единственного поставщика)"]
[160,null,null,"Продление Лицензии Касперский",null,876,"усл.ед.",1,22401000000,"г.Нижний Новгород",500000,"Январь, 2014г.","Декабрь, 2014г.","Прямая закупка (закупка у единственного поставщика)"]
[161,null,null,"Программное обеспечение для диспетчерских пунктов",null,876,"усл.ед.",1,22401000000,"г.Нижний Новгород",821430,"Январь, 2014г.","Декабрь, 2014г.","Прямая закупка (закупка у единственного поставщика)"]
[162,null,null,"Программное обеспечение 1С Бухгалтерия",null,876,"усл.ед.",1,22401000000,"г.Нижний Новгород",89720,"Январь, 2014г.","Декабрь, 2014г.","Прямая закупка (закупка у единственного поставщика)"]
[163,null,null,"Договор правообладания на АИС\"Регионгаз\"",null,876,"усл.ед.",1,22401000000,"г.Нижний Новгород",{"$f":"203880","v":203880},"Январь, 2014г.","Декабрь, 2014г.","Прямая закупка (закупка у единственного поставщика)"]
[164,null,null,"Договор правообладания на АСДОУ",null,876,"усл.ед.",1,22401000000,"г.Нижний Новгород",{"$f":"10370","v":10370},"Январь, 2014г.","Декабрь, 2014г.","Прямая закупка (закупка у единственного поставщика)"]
[165,null,null,"Лицензионный платеж за использование товарных знаков ОАО \"Газпром\"",null,876,"усл.ед.",1,22401000000,"г.Нижний Новгород",{"$f":"283200","v":283200},"Январь, 2014г.","Декабрь, 2014г.","Прямая закупка (закупка у единственного поставщика)"]
[166,null,null,"Лицензии Microsoft ",null,876,"усл.ед.",1,22401000000,"г.Нижний Новгород",1086940,"Январь, 2014г.","Декабрь, 2014г.","Прямая закупка (закупка у единственного поставщика)",null,"ОАО Газпром: закупка лицензий на програмное обеспечение Microsoft (сервер баз данных)"]
[167,null,null,"Лицензия  для СЗИ ЕИТП",null,876,"усл.ед.",1,22401000000,"г.Нижний Новгород",{"$f":"300000","v":300000},"Январь, 2014г.","Декабрь, 2014г.","Прямая закупка (закупка у единственного поставщика)"]
[168,null,null,"Программное обеспечение \"ITOB: Центр мониторинга\" (для навигации автотранспорта)",null,876,"усл.ед.",1,22401000000,"г.Нижний Новгород",7350,"Январь, 2014г.","Декабрь, 2014г.","Прямая закупка (закупка у единственного поставщика)"]
[169,null,null,"Право на использование системы защиты информации Secret Net 5.1",null,876,"усл.ед.",1,22401000000,"г.Нижний Новгород",1090,"Январь, 2014г.","Декабрь, 2014г.","Прямая закупка (закупка у единственного поставщика)"]
[170,null,null,"Бассейн",null,876,"усл.ед.",1,22401000000,"г.Нижний Новгород",445544,"Январь, 2014г.","Июнь, 2014г.","Прямая закупка (закупка у единственного поставщика)"]
["170.1",null,null,"Бассейн",null,876,"усл.ед.",1,22401000000,"г.Нижний Новгород",365866,"Август, 2014г.","Декабрь, 2014г.","Открытый запрос предложений","нет"]
[171,null,null,"Абонементы на физкультурно - оздоровительные мероприятия.",null,876,"усл.ед.",1,22401000000,"г.Нижний Новгород",291150,"Январь, 2014г.","Декабрь, 2014г.","Прямая закупка (закупка у единственного поставщика)"]
[172,null,null,"Расходы на поздравления (поздравительные телеграммы и пр.)",null,876,"усл.ед.",1,22401000000,"г.Нижний Новгород",50000,"Январь, 2014г.","Декабрь, 2014г.","Прямая закупка (закупка у единственного поставщика)"]
[173,null,null,"Прочие непредвиденные расходы из прибыли",null,876,"усл.ед.",1,22401000000,"г.Нижний Новгород",348300,"Январь, 2014г.","Декабрь, 2014г.","Прямая закупка (закупка у единственного поставщика)"]
[174,null,null,"Организация Дня работника газовой промышленности",null,876,"усл.ед.",1,22401000000,"г.Нижний Новгород",1014800,"Январь, 2014г.","Декабрь, 2014г.","Открытый запрос предложений","нет"]
[175,null,null,"Расходы по договору с ЗАО СР \"ДРАГА\" (реестродержатель)",null,876,"усл.ед.",1,22401000000,"г.Нижний Новгород",73100,"Январь, 2014г.","Декабрь, 2014г.","Прямая закупка (закупка у единственного поставщика)"]
[176,null,null,"Расходы на ремонт а/м после ДТП",null,876,"усл.ед.",1,22401000000,"г.Нижний Новгород",{"$f":"200000","v":200000},"Январь, 2014г.","Декабрь, 2014г.","Прямая закупка (закупка у единственного поставщика)"]
[177,null,null,"Расходы на покупку газа",null,876,"усл.ед.",1,22401000000,"г.Нижний Новгород",{"$f":"30146381910*1.18","v":35572730653.799995},"Январь, 2014г.","Декабрь, 2014г.","Прямая закупка (закупка у единственного поставщика)"]
[178,null,null,"Приобретение представительской и имиджевой продукции, печать календарей",null,876,"усл.ед.",1,22401000000,"г.Нижний Новгород",1004742.4,"Январь, 2014г.","Декабрь, 2014г.","Открытый запрос предложений","да"]
[179,null,null,"Участие в международном газовом форуме",null,876,"усл.ед.",1,22401000000,"г.Нижний Новгород",416000,"Январь, 2014г.","Декабрь, 2014г.","Прямая закупка (закупка у единственного поставщика)"]
[180,"74.4",null,"Размещение рекламно - информационных материалов",null,876,"усл.ед.",1,22401000000,"г.Нижний Новгород",465500,"Январь, 2014г.","Декабрь, 2014г.","Прямая закупка (закупка у единственного поставщика)"]
[181,null,null,"Регистрация домена и поддержание веб - сайта",null,876,"усл.ед.",1,22401000000,"г.Нижний Новгород",29160,"Январь, 2014г.","Декабрь, 2014г.","Прямая закупка (закупка у единственного поставщика)"]
[182,null,null,"Оказание услуг по организации воздушных перевозок",null,876,"усл.ед.",1,22401000000,"г.Нижний Новгород",25961700,"Январь, 2014г.","Декабрь, 2014г.","Прямая закупка (закупка у единственного поставщика)"]
[183,null,null,"Расходы по госпошлине и гос.регистрации",null,876,"усл.ед.",1,22401000000,"г.Нижний Новгород",3088570,"Январь, 2014г.","Декабрь, 2014г.","Прямая закупка (закупка у единственного поставщика)"]
[184,null,4560000,"Проектные работы по реконструкции административного здания по адресу: г.Нижний Новгород, ул. В. Волжская набережная д.5. Изготовление проекта в соответствии с ТУ и техническим заданием.  Затраты Заказчика: Сбор и анализ проектных данных. Получение ТУ и разрешительных документов.","Проектные работы.",876,"усл.ед.",1,22401000000,"г.Нижний Новгород",422256.07,"Январь, 2014г.","Май, 2014г.","Открытый запрос предложений","нет"]
[185,null,4560000,"Проектные работы по реконструкции системы охранного наблюдения и контроля управления доступом (инв. 47010)  ОАО «Газпром межрегионгаз Нижний Новгород» по адресу: г.Нижний Новгород, ул.Верхне - Волжская набережная, д.5.","Проектные работы.",876,"усл.ед.",1,22401000000,"г.Нижний Новгород",40768.400000000001,"Январь, 2014г.","Март, 2014г.","Открытый запрос предложений","нет"]
[186,null,4560000,"Проектные работы по установке узла учета газа в котельных №80, 81, 82, 83, 84 г.Сергач.","Проектные работы.",876,"усл.ед.",1,22401000000,"г.Нижний Новгород",304782.2,"Январь, 2014г.","Март, 2014г.","Открытый запрос предложений","нет"]
[188,"50.30.2",3430000,"Автошины",null,796,"шт",60,22401000000,"г.Нижний Новгород",{"$f":"(210169.49+50000)*1.18+62000","v":368999.99819999997},"Апрель, 2014г.","Октябрь, 2014г.","Прямая закупка (закупка у единственного поставщика)","да"]
[189,null,null,"Расходы на благоустройство газона и цветы Вл.обл.",null,876,"усл.ед.",1,17000000000,"Владимирская область",150000,"Апрель, 2014г.","Июнь, 2014г.","Прямая закупка (закупка у единственного поставщика)"]
[190,null,null,"Оборудование связи","Сотов.тел., радиотелефон, телеф.апп-ты, телеф.приставки, ИБП",796,"шт",23,22401000000,"г.Нижний Новгород",{"$f":"102991.24","v":102991.24},"Апрель, 2014г.","Июнь, 2014г.","Открытый запрос предложений","да"]
[191,"51.64.2",3020010,"Компьютерная техника","Моноблок, нетбук, компьютеры, ноутбук",796,"шт",22,22401000000,"г.Нижний Новгород",670358.4,"Апрель, 2014г.","Декабрь, 2014г.","Открытый запрос предложений","да"]
[192,"51.64.2",3020010,"Ноутбуки","Моноблок, нетбук, компьютеры, ноутбук",796,"шт",3,22401000000,"г.Нижний Новгород",53226.5,"Апрель, 2014г.","Июнь, 2014г.","Открытый запрос предложений","да"]
[193,"45.2",4520000,"Текущий ремонт административного здания",null,876,"усл.ед.",1,22401000000,"г.Нижний Новгород",1270033.8400000001,"Апрель, 2014г.","Декабрь, 2014г.","Открытый запрос предложений","нет"]
[194,"45.21",4520000,"Текущий ремонт фасадов",null,876,"усл.ед.",1,22401000000,"г.Нижний Новгород",1087802.9099999999,"Апрель, 2014г.","Сентябрь, 2014г.","Открытый запрос предложений","нет"]
[195,"45.21",4520000,"Текущий ремонт объектов Владимирской области",null,876,"усл.ед.",1,17000000000,"Владимирская область",1058023.6000000001,"Апрель, 2014г.","Сентябрь, 2014г.","Открытый запрос предложений","нет"]
[196,null,6420000,"Продление сертификатов ключей проверки электронной подписи для применения на ЭТП для закупок ",null,876,"усл.ед.",1,22401000000,"г.Нижний Новгород",{"$f":"22091.53*1.18","v":26068.005399999998},"Апрель, 2014г.","Июнь, 2014г.","Прямая закупка (закупка у единственного поставщика)"]
[197,null,null,"Приобретение медикаментов и оборудования для медкабинета, аптечек первой помощи",null,876,"усл.ед.",1,22401000000,"г.Нижний Новгород",{"$f":"42620*1.18+8600","v":58891.6},"Апрель, 2014г.","Июнь, 2014г.","Прямая закупка (закупка у единственного поставщика)"]
[198,null,null,"Организация спартакиады.",null,876,"усл.ед.",1,22401000000,"г.Нижний Новгород",239400,"Апрель, 2014г.","Июнь, 2014г.","Прямая закупка (закупка у единственного поставщика)"]
[199,null,null,"Приобретение цветочной продукции",null,876,"усл.ед.",1,22401000000,"г.Нижний Новгород",303300,"Апрель, 2014г.","Декабрь, 2014г.","Прямая закупка (закупка у единственного поставщика)"]
[200,null,4560000,"Реконструкция котельной №80 с заменой котлов и увеличением тепловой мощности до 0,6 МВт по адресу: г.Сергач Нижегородской области, ул.Кленовая, д.1а.","Монтажные и пуско - наладочные работы.",876,"усл.ед.",1,22248501000,"г.Сергач",2735590.46,"Апрель, 2014г.","Декабрь, 2014г.","Открытый запрос предложений","нет"]
[201,null,3635018,"Технический надзор за реконструкцией котельной №80 с заменой котлов и увеличением тепловой мощности до 0,6 МВт по адресу: г. Сергач  Нижегородской области, ул. Кленовая, д.1а.","Технический надзор.",876,"усл.ед.",1,22248501000,"г.Сергач",30091.5,"Апрель, 2014г.","Декабрь, 2014г.","Прямая закупка (закупка у единственного поставщика)"]
[202,null,null,"Приобретение автотранспорта","Toyota Highlander Престиж \nкроссовер 7 мест,дв.3.5 л,249 л.с.бензин,АКПП6,4х4\n",796,"шт",1,22401000000,"г.Нижний Новгород",2161737.25,"Апрель, 2014г.","Июнь, 2014г.","Открытый запрос предложений","да"]
[203,"50.20.1",5020020,"Гарантийный ремонт автомобилей Фольксваген",null,876,"усл.ед.",1,22401000000,"г.Нижний Новгород",150000,"Апрель,  2014г.","Декабрь, 2014г.","Прямая закупка (закупка у единственного поставщика)"]
[222,"45",4500000,"Реконструкция оборудования котельных № 44Н, №28, расположенных в г. Дзержинск Нижегородской области","Монтажные и пуско - наладочные работы.",876,"усл.ед.",1,22421000000,"г.Дзержинск",3169317.16,"Июнь, 2014г.","Октябрь, 2014г.","Открытый запрос предложений","нет"]
[223,null,3635018,"Технический надзор за Реконструкцией оборудования котельных № 44Н, №28, расположенных в г. Дзержинск Нижегородской области.","Технический надзор.",876,"усл.ед.",1,22421000000,"г.Дзержинск",28841.02,"Июнь, 2014г.","Октябрь, 2014г.","Прямая закупка (закупка у единственного поставщика)"]
[205,"50.20.1",5020020,"Гарантийный ремонт автомобилей Хендай",null,876,"усл.ед.",1,22401000000,"г.Нижний Новгород",350000,"Июль, 2014г.","Декабрь, 2014г.","Прямая закупка (закупка у единственного поставщика)"]
[206,null,null,"Оборудование (бытовая техника)",null,796,"шт",10,22401000000,"г.Нижний Новгород",{"$f":"101598-20060-21240","v":60298},"Июль, 2014г.","Декабрь, 2014г.","Прямая закупка (закупка у единственного поставщика)",null,"ЦО: пылесос керхер 1 (деньги 20060,00 в инвентарь (стр.57)), СВЧ-печь 3, хол-к 2. Вл.обл.: мороз.камера 1 (деньги 21240,00 в инвентарь (стр.57)), стир.маш. 1, пылесос 2, мотопомпа Хонда 1"]
[207,null,null,"Оборудование (бытовая техника)",null,796,"шт",3,22401000000,"г.Нижний Новгород",92040,"Июль, 2014г.","Декабрь, 2014г.","Открытый запрос предложений","нет"]
[208,"51.64.2",3010030,"Оргтехника","Принтеры\nМФУ",796,"шт",26,22401000000,"г.Нижний Новгород",{"$f":"380619.8+560042.16","v":940661.96},"Июль, 2014г.","Сентябрь, 2014г.","Открытый запрос предложений","да"]
[209,"18.21",1816000,"Расходы на спецодежду и обувь","В соответствии с указанными сведениями в закупочной документации.",796,"шт",55,22401000000,"г.Нижний Новгород",{"$f":"103614-21791","v":81823},"Июль, 2014г.","Сентябрь, 2014г.","Открытый запрос предложений"]
[210,null,null,"Приобретение автотранспорта","Toyota VENZA \"ЭлегансПлюс 2,7АТ",796,"шт",1,22401000000,"г.Нижний Новгород",1742555.17,"Июль, 2014г.","Сентябрь, 2014г.","Открытый запрос предложений","да"]
[211,null,null,"Приобретение автотранспорта","Автомобиль Hyundai i40 2,0 MPI 6AT Elegance",796,"шт",1,22401000000,"г.Нижний Новгород",1161703.45,"Июль, 2014г.","Сентябрь, 2014г.","Открытый запрос предложений","да"]
[212,null,null,"Приобретение автотранспорта","Автомобиль Renault Duster Luxe Privilege 4x2 2.0 АКП4 ",796,"шт",3,22401000000,"г.Нижний Новгород",1959226.68,"Июль, 2014г.","Сентябрь, 2014г.","Открытый запрос предложений","да"]
[213,null,null,"Текстильные изделия",null,796,"шт",58,22401000000,"г.Нижний Новгород",86753.600000000006,"Октябрь, 2014г.","Декабрь, 2014г.","Прямая закупка (закупка у единственного поставщика)"]
[214,null,null,"Инвентарь",null,796,"шт",1,22401000000,"г.Нижний Новгород",{"$f":"21240-17700","v":3540},"Октябрь, 2014г.","Декабрь, 2014г.","Открытый запрос предложений","нет"]
[215,"75.25.3",2519880,"Материалы по линии ГО и ЧС",null,796,"шт",30,22401000000,"г.Нижний Новгород",{"$f":"24000*1.18","v":28320},"Октябрь, 2014г.","Декабрь, 2014г.","Открытый запрос предложений","нет"]
[216,null,3313020,"Поставка запасных частей к оборудованию телеметрии и ИК УУГ",null,876,"усл.ед.",1,22401000000,"г.Нижний Новгород",{"$f":"(423220+205700)*1.18","v":742125.6},"Октябрь, 2014г.","Декабрь, 2014г.","Открытый запрос предложений","нет"]
[217,null,null,"Детские подарки к новому году",null,876,"усл.ед.",1,22401000000,"г.Нижний Новгород",{"$f":"454000","v":454000},"Ноябрь, 2014г.","Декабрь, 2014г.","Прямая закупка (закупка у единственного поставщика)"]
[218,null,null,"Организация празднования Нового года.",null,876,"усл.ед.",1,22401000000,"г.Нижний Новгород",3138840,"Ноябрь, 2014г.","Декабрь, 2014г.","Открытый запрос предложений","нет"]
[219,"50.20.",5020000,"Техническое обслуживание и ремонт автомобилей","Цена, сроки исполнения работ,  обеспечение исправного состояния",876,"усл.ед.",1,22401000000,"г.Нижний Новгород",{"$f":"2922400+213900","v":3136300},"Декабрь, 2013г.","Декабрь, 2014г.","Открытый запрос предложений","да"]
[220,"74.20.1",4560000,"Реконструкция котлов и оборудования ТАИиС в котельных №28 и №44Н г.Дзержинск. Проектные работы.","Проектные работы.",876,"усл.ед.",2,22421000000,"г.Дзержинск",551619.31999999995,"Март, 2014г.","Июнь, 2014г.","Открытый запрос предложений","нет"]
[221,"51.70",7440000,"Реконструкция котлов и оборудования ТАИиС в котельных №28 и №44Н г.Дзержинск. Затраты Заказчика.","Экспертиза проектов.",876,"усл.ед.",2,22421000000,"г.Дзержинск",68000,"Апрель, 2014г.","Май, 2014г.","Прямая закупка (закупка у единственного поставщика)"]
[]
["Генеральный директор ОАО \"Газпром межрегионгаз Нижний Новгород\" Ф.Г. Верховодов",{"$nulls":13},"«16» июня 2014г."]
["(Ф.И.О., должность руководителя (уполномоченного лица) заказчика)",{"$nulls":7},"(подпись)",null,null,"(дата утверждения)"]
[{"$nulls":8},"М.П."]